bitfinex/quotes_BTCUSD_20250904
["timestamp","ask_amount","ask_price","bid_price","bid_amount"]
[1756991739488,0.76891147,110950.0,110940.0,0.19201087]
[1756991739686,0.76891147,110950.0,110940.0,0.1897574]
[1756991739904,0.49665411,110950.0,110940.0,0.1897574]
[1756991740301,0.67691548,110950.0,110940.0,0.1897574]
[1756991740872,0.00361411,110950.0,110940.0,0.55877278]
[1756991741097,0.25564033,110970.0,110940.0,0.69502759]
[1756991741338,0.0813879,110970.0,110960.0,0.18024513]
[1756991741540,0.02709069,110970.0,110960.0,0.69049532]
[1756991741749,0.38560504,111010.0,110970.0,0.18921532]
[1756991741750,0.26267149,111010.0,110970.0,0.18921532]
[1756991741969,0.26267149,111010.0,111000.0,0.18018018]
[1756991741970,0.2167598,111010.0,111000.0,0.18018018]
[1756991742142,0.73692374,111010.0,111000.0,0.18018018]
[1756991742348,0.76400541,111010.0,111000.0,0.18018018]
[1756991742531,0.6904591,111010.0,111000.0,0.18018018]
[1756991742943,0.6904591,111010.0,111000.0,0.18243243]
[1756991743145,0.2171791,111010.0,111000.0,0.18243243]
[1756991743382,0.03701516,111010.0,111000.0,0.1829022]
[1756991743590,0.2171791,111010.0,111000.0,0.18064995]
[1756991743790,0.2181791,111010.0,111000.0,0.18064995]
[1756991744001,0.7113391,111010.0,111000.0,0.18064995]
[1756991745294,0.36908167,111010.0,111000.0,0.18064995]
[1756991745516,0.001,111010.0,111000.0,0.18064995]
[1756991745721,0.52014824,111020.0,111010.0,0.18016394]
[1756991745924,0.70034623,111020.0,111010.0,0.18041598]
[1756991746101,0.02707851,111020.0,111010.0,0.17816394]
[1756991746314,0.02707851,111020.0,111010.0,0.18041598]
[1756991746713,0.21607424,111020.0,111010.0,0.18041598]
[1756991746937,0.23586462,111020.0,111010.0,0.18041598]
[1756991747151,0.23586462,111020.0,111000.0,0.33372995]
[1756991747371,0.18016394,111010.0,111000.0,0.18064995]
[1756991747586,0.18016394,111010.0,111000.0,0.33372995]
[1756991747807,0.18016394,111010.0,111000.0,0.33420995]
[1756991748476,0.55429932,111010.0,111000.0,0.00046977]
[1756991748758,0.70781932,111010.0,111000.0,0.00046977]
[1756991749413,0.70781932,111010.0,111000.0,0.00446977]
[1756991749844,0.70781932,111010.0,111000.0,0.00046977]
[1756991750083,0.70781932,111010.0,111000.0,0.00346977]
[1756991751301,0.70781932,111010.0,111000.0,0.00446977]
[1756991751500,0.7349001,111010.0,111000.0,0.00446977]
[1756991752140,0.36588472,111010.0,111000.0,0.18464995]
[1756991752351,0.7328101,111010.0,111000.0,0.18018018]
[1756991752565,0.02708078,111010.0,111000.0,0.18243243]
[1756991752817,0.20724472,111010.0,111000.0,0.18243243]
[1756991753030,0.02708078,111010.0,111000.0,0.18243243]
[1756991753470,0.20724472,111010.0,111000.0,0.18243243]
[1756991756057,0.5762601,111010.0,111000.0,0.18243243]
[1756991756986,0.02708078,111010.0,111000.0,0.18243243]
[1756991757415,0.20724472,111010.0,111000.0,0.33591243]
[1756991757651,0.20724472,111010.0,111000.0,0.33366018]
[1756991758214,0.29916071,111010.0,111000.0,0.15348]
[1756991758414,0.30543553,111010.0,111000.0,0.33591243]
[1756991758675,0.66817609,111010.0,111000.0,0.33366018]
[1756991759088,0.29916071,111010.0,111000.0,0.33366018]
[1756991759297,0.30543886,111010.0,111000.0,0.33366018]
[1756991759883,0.30543886,111010.0,111000.0,0.15348]
[1756991760084,0.31055886,111010.0,111000.0,0.00225225]
[1756991760293,0.18018018,111000.0,110990.0,0.33359641]
[1756991760497,0.75771333,111000.0,110990.0,0.00014074]
[1756991760693,0.76399427,111000.0,110990.0,0.00014074]
[1756991761250,1.47300965,111000.0,110990.0,0.00014074]
[1756991761451,1.56492564,111000.0,110990.0,0.00014074]
[1756991761561,1.60098523,111000.0,110990.0,0.00214074]
[1756991761796,1.4473439,111000.0,110990.0,0.00214074]
[1756991762031,1.6009839,111000.0,110990.0,0.00414074]
[1756991762232,1.62521149,111000.0,110990.0,0.00214074]
[1756991762435,1.62521149,111000.0,110990.0,0.00314074]
[1756991762858,1.49865678,111000.0,110990.0,0.00214074]
[1756991763064,1.2842814,111000.0,110990.0,0.00214074]
[1756991763263,1.2842814,111000.0,110990.0,0.00014074]
[1756991763496,1.51314549,111000.0,110990.0,0.00014074]
[1756991763693,1.55383487,111000.0,110990.0,0.00114074]
[1756991764377,1.55383487,111000.0,110990.0,0.00014074]
[1756991764623,1.40019487,111000.0,110990.0,0.00014074]
[1756991764830,0.76162602,111000.0,110990.0,0.00014074]
[1756991764977,0.86562825,111000.0,110990.0,0.00014074]
[1756991765190,1.46350772,111000.0,110990.0,0.00014074]
[1756991765591,1.46352852,111000.0,110990.0,0.00014074]
[1756991766045,1.45624758,111000.0,110990.0,0.00014074]
[1756991766253,1.54816357,111000.0,110990.0,0.00014074]
[1756991766422,1.58146953,111000.0,110990.0,0.00014074]
[1756991766626,1.58986616,111000.0,110990.0,0.00014074]
[1756991766835,1.53238794,111000.0,110990.0,0.00014074]
[1756991767478,1.23339788,111000.0,110990.0,0.18033715]
[1756991767603,0.23163227,111000.0,110990.0,0.18033715]
[1756991767836,0.04738872,111000.0,110990.0,0.18033715]
[1756991768041,0.76536912,111000.0,110990.0,0.18033715]
[1756991768252,0.61164912,111000.0,110990.0,0.00014074]
[1756991768459,0.87443137,111000.0,110990.0,0.1825896]
[1756991768703,0.89653005,111000.0,110990.0,0.18033715]
[1756991768909,0.74793005,111000.0,110990.0,0.18033715]
[1756991769128,0.75633729,111000.0,110990.0,0.18133715]
[1756991769338,0.91001729,111000.0,110990.0,0.18133715]
[1756991769550,0.36713707,111000.0,110990.0,0.18133715]
[1756991769756,0.63988245,111000.0,110990.0,0.18133715]
[1756991770174,0.82006263,111000.0,110990.0,0.18133715]
[1756991770382,0.85236859,111000.0,110990.0,0.18133715]
[1756991770586,0.85534859,111000.0,110990.0,0.18233715]
[1756991770741,0.51850841,111000.0,110990.0,0.18233715]
[1756991770957,0.10212223,111000.0,110990.0,0.18233715]
[1756991771177,0.63984245,111000.0,110990.0,0.18233715]
[1756991771339,0.64792082,111000.0,110990.0,0.18233715]
[1756991772388,0.66580426,111000.0,110990.0,0.18233715]
[1756991773206,0.2638406,111000.0,110990.0,0.18233715]
[1756991773419,0.28810175,111000.0,110990.0,0.18233715]
[1756991773631,0.828101,111000.0,110990.0,0.18233715]
[1756991774018,0.64792082,111000.0,110990.0,0.18233715]
[1756991774429,0.85737166,111000.0,110990.0,0.18133715]
[1756991774572,0.5253738,111000.0,110990.0,0.18333715]
[1756991774767,0.90742402,111000.0,110990.0,0.18333715]
[1756991775412,0.90945402,111000.0,110990.0,0.00314074]
[1756991775614,0.90945402,111000.0,110990.0,0.00414074]
[1756991775615,0.95804216,111000.0,110990.0,0.00414074]
[1756991777559,0.95804216,111000.0,110990.0,0.18433715]
[1756991777784,0.90945402,111000.0,110990.0,0.18433715]
[1756991777962,0.90742402,111000.0,110990.0,0.18433715]
[1756991778192,0.90945853,111000.0,110990.0,0.18433715]
[1756991778941,0.9094785,111000.0,110990.0,0.18433715]
[1756991779169,0.64799882,111000.0,110990.0,0.18433715]
[1756991779400,0.65540623,111000.0,110990.0,0.18433715]
[1756991779606,0.11768601,111000.0,110990.0,0.18433715]
[1756991779815,0.05829476,111000.0,110990.0,0.18433715]
[1756991781877,0.05829428,111000.0,110990.0,0.18433715]
[1756991782310,0.03404942,111000.0,110990.0,0.18433715]
[1756991783129,0.02562317,111000.0,110990.0,0.18433715]
[1756991783329,0.02562317,111000.0,110990.0,0.33785715]
[1756991783543,0.39424252,111000.0,110990.0,0.33785715]
[1756991784171,0.02562317,111000.0,110990.0,0.42977314]
[1756991784381,0.39424252,111000.0,110990.0,0.42973314]
[1756991785157,0.02562317,111000.0,110990.0,0.42973314]
[1756991785576,0.02562317,111000.0,110990.0,0.45067196]
[1756991786137,0.02562372,111000.0,110990.0,0.81929131]
[1756991786634,0.0756678,111030.0,111010.0,0.18016394]
[1756991786635,0.58164918,111030.0,111010.0,0.18016394]
[1756991786919,0.58350822,111030.0,111020.0,0.18239956]
[1756991787146,0.2260519,111030.0,111020.0,0.18239956]
[1756991787373,0.42704822,111030.0,111020.0,0.18239956]
[1756991787543,0.55626435,111030.0,111020.0,0.18239956]
[1756991788006,0.55726435,111030.0,111020.0,0.18239956]
[1756991788401,0.55924435,111030.0,111020.0,0.18239956]
[1756991788974,0.55916435,111030.0,111020.0,0.18339956]
[1756991789176,0.82481341,111030.0,111020.0,0.18114772]
[1756991789587,0.36427807,111030.0,111020.0,0.18114772]
[1756991789800,0.18414658,111030.0,111020.0,0.18114772]
[1756991790003,0.55276593,111030.0,111020.0,0.18114772]
[1756991790362,0.53335066,111030.0,111020.0,0.18114772]
[1756991790813,0.71348215,111030.0,111020.0,0.18114772]
[1756991791017,0.53335066,111030.0,111020.0,0.18114772]
[1756991791172,0.52702935,111030.0,111020.0,0.18114772]
[1756991791380,0.15841,111030.0,111020.0,0.18114772]
[1756991791581,0.1534,111030.0,111020.0,0.18114772]
[1756991791811,0.52201935,111030.0,111020.0,0.18114772]
[1756991792173,0.37362935,111030.0,111020.0,0.18114772]
[1756991792550,0.64567683,111030.0,111020.0,0.001]
[1756991792865,0.64567683,111030.0,111020.0,0.18114772]
[1756991793506,0.55376084,111030.0,111020.0,0.18114772]
[1756991793757,0.18514149,111030.0,111020.0,0.18114772]
[1756991793934,0.55376084,111030.0,111020.0,0.001]
[1756991794143,0.92238019,111030.0,111020.0,0.001]
[1756991794583,0.9286952,111030.0,111020.0,0.001]
[1756991794790,1.4719199,111030.0,111020.0,0.001]
[1756991794991,0.7372387,111000.0,110990.0,0.33368917]
[1756991795237,0.7392687,111000.0,110990.0,0.33368917]
[1756991795399,0.92242888,111000.0,110990.0,0.33368917]
[1756991795601,0.7422487,111000.0,110990.0,0.33368917]
[1756991795924,0.7422487,111000.0,110990.0,0.33528917]
[1756991796154,0.92242888,111000.0,110990.0,0.33528917]
[1756991796906,0.7422487,111000.0,110990.0,0.33528917]
[1756991797307,0.92242888,111000.0,110990.0,0.33528917]
[1756991797506,0.56925029,111000.0,110990.0,0.33528917]
[1756991798112,0.56925029,111000.0,110990.0,0.33728917]
[1756991798340,0.56925029,111000.0,110990.0,0.18232917]
[1756991798528,0.65952883,111000.0,110990.0,0.33568917]
[1756991798736,0.65952883,111000.0,110990.0,0.33576917]
[1756991799116,0.65952883,111000.0,110990.0,0.18232917]
[1756991799378,0.27546872,111000.0,110990.0,0.33572917]
[1756991799675,0.56925029,111000.0,110990.0,0.33572917]
[1756991800218,0.33353513,111010.0,111000.0,0.18018018]
[1756991800219,0.34572421,111010.0,111000.0,0.18018018]
[1756991800423,0.73194432,111010.0,111000.0,0.18243243]
[1756991801503,0.16782908,111010.0,111000.0,0.18243243]
[1756991802111,0.73205313,111010.0,111000.0,0.18343243]
[1756991802290,0.73205313,111010.0,111000.0,0.18118018]
[1756991802976,0.55188919,111010.0,111000.0,0.18118018]
[1756991803315,0.73205313,111010.0,111000.0,0.18118018]
[1756991803519,0.57857313,111010.0,111000.0,0.18118018]
[1756991804130,0.38406011,111010.0,111000.0,0.18278018]
[1756991804529,0.38622011,111010.0,111000.0,0.18278018]
[1756991804736,0.38932011,111010.0,111000.0,0.18118018]
[1756991806630,0.38932011,111010.0,111000.0,0.18278018]
[1756991806855,0.43932039,111010.0,111000.0,0.18118018]
[1756991807026,0.38932011,111010.0,111000.0,0.18118018]
[1756991807192,0.56948405,111010.0,111000.0,0.18118018]
[1756991808266,0.56948405,111010.0,111000.0,0.001]
[1756991808511,0.56948405,111010.0,111000.0,0.15436]
[1756991809091,0.56948405,111010.0,111000.0,0.33454018]
[1756991809395,0.66140004,111010.0,111000.0,0.33454018]
[1756991809651,0.66140004,111010.0,111000.0,0.001]
[1756991810278,0.66140004,111010.0,111000.0,0.18118018]
[1756991810689,0.38406011,111010.0,111000.0,0.18278018]
[1756991811116,0.68543707,111020.0,111010.0,0.18016394]
[1756991811307,1.06639718,111020.0,111010.0,0.00225204]
[1756991811503,1.06855718,111020.0,111000.0,0.18118018]
[1756991811704,0.53117707,111020.0,111010.0,0.18241598]
[1756991811878,0.68759707,111020.0,111010.0,0.33573598]
[1756991812105,0.68759707,111020.0,111010.0,0.33348394]
[1756991812513,0.68959707,111020.0,111010.0,0.33348394]
[1756991812722,1.07365718,111020.0,111010.0,0.33348394]
[1756991812925,1.10567285,111020.0,111010.0,0.33348394]
[1756991813971,1.10567285,111020.0,111010.0,0.18016394]
[1756991814180,1.07361718,111020.0,111010.0,0.18401598]
[1756991814345,1.07361718,111020.0,111010.0,0.18016394]
[1756991814550,1.07361718,111020.0,111010.0,0.18241598]
[1756991814756,0.35610501,111020.0,111010.0,0.18401598]
[1756991814960,1.06470783,111020.0,111010.0,0.18401598]
[1756991815160,0.9764761,111020.0,111010.0,0.18401598]
[1756991815365,0.57635509,111030.0,111020.0,0.18014772]
[1756991815613,0.2102922,111040.0,111030.0,0.18013149]
[1756991815916,1.0626356,111040.0,111030.0,0.18013149]
[1756991816125,1.0626356,111040.0,111030.0,0.18238313]
[1756991816126,1.07154907,111040.0,111030.0,0.18238313]
[1756991816231,0.57834885,111040.0,111030.0,0.18238313]
[1756991816435,0.55155358,111040.0,111030.0,0.18238313]
[1756991816660,1.06275538,111040.0,111030.0,0.18238313]
[1756991816870,1.06322478,111040.0,111030.0,0.18238313]
[1756991817100,1.06622478,111040.0,111030.0,0.18238313]
[1756991817319,0.68216467,111040.0,111030.0,0.18238313]
[1756991817579,1.06622478,111040.0,111030.0,0.18238313]
[1756991817710,1.06622478,111040.0,111030.0,0.18013149]
[1756991818334,0.18013149,111030.0,111020.0,0.33346772]
[1756991818537,0.18539149,111030.0,111020.0,0.33346772]
[1756991818740,0.00526,111030.0,111020.0,0.33346772]
[1756991819142,0.00526,111030.0,111020.0,0.33506772]
[1756991819342,0.38932011,111030.0,111020.0,0.33506772]
[1756991819587,0.37373199,111030.0,111020.0,0.33506772]
[1756991820550,0.36847199,111030.0,111020.0,0.33506772]
[1756991820763,0.0004694,111040.0,111030.0,0.18013149]
[1756991821025,0.36894139,111040.0,111030.0,0.18398313]
[1756991821234,0.36894139,111040.0,111030.0,0.18173149]
[1756991821450,0.0004694,111040.0,111030.0,0.18273149]
[1756991821663,0.0004694,111040.0,111030.0,0.2955863]
[1756991821881,0.0004694,111040.0,111030.0,0.70400348]
[1756991822497,0.0024694,111040.0,111030.0,0.33553149]
[1756991822671,0.0024694,111040.0,111030.0,0.70400348]
[1756991822902,0.0004694,111040.0,111030.0,0.70400348]
[1756991823059,0.0004694,111040.0,111030.0,0.70600348]
[1756991823264,0.0004694,111040.0,111030.0,0.70700348]
[1756991823465,0.0004694,111040.0,111030.0,0.33853149]
[1756991823659,0.0004694,111040.0,111030.0,0.33753149]
[1756991824227,0.0004694,111040.0,111030.0,0.33953149]
[1756991824570,0.0004694,111040.0,111030.0,0.33753149]
[1756991824920,0.0004694,111040.0,111030.0,0.33953149]
[1756991825613,0.0004694,111040.0,111030.0,0.49261149]
[1756991826578,0.0004694,111040.0,111030.0,0.4526663]
[1756991827220,0.00024896,111040.0,111030.0,0.4526663]
[1756991831195,0.00024896,111040.0,111030.0,0.2995863]
[1756991831392,0.00024896,111040.0,111030.0,0.7925063]
[1756991832040,0.00024896,111040.0,111030.0,1.0395863]
[1756991832449,0.00024896,111040.0,111030.0,1.1924663]
[1756991835079,0.00024896,111040.0,111030.0,1.1924263]
[1756991837070,0.00024896,111040.0,111030.0,1.0395863]
[1756991837272,0.00024896,111040.0,111030.0,1.1923463]
[1756991838867,0.00024896,111040.0,111030.0,1.78945909]
[1756991839287,0.00024896,111040.0,111030.0,1.63469909]
[1756991839488,0.00024896,111040.0,111030.0,1.1932663]
[1756991840565,0.00024896,111040.0,111030.0,1.1912663]
[1756991840894,0.00024896,111040.0,111030.0,1.1942663]
[1756991841302,0.00024896,111040.0,111030.0,1.1912663]
[1756991841504,0.00024896,111040.0,111030.0,1.1882663]
[1756991841706,0.00024896,111040.0,111030.0,1.1922663]
[1756991841901,0.00024896,111040.0,111030.0,1.1952663]
[1756991843394,0.00024896,111040.0,111030.0,1.56348771]
[1756991845675,0.00024896,111040.0,111030.0,1.41080771]
[1756991845875,0.00024896,111040.0,111030.0,1.56340771]
[1756991847318,0.00024896,111040.0,111030.0,1.1951863]
[1756991847591,0.00024896,111040.0,111030.0,1.56340771]
[1756991850284,0.00024896,111040.0,111030.0,1.1951863]
[1756991850510,0.00024896,111040.0,111030.0,1.0415863]
[1756991850734,0.00024896,111040.0,111030.0,1.1941863]
[1756991853358,0.00024896,111040.0,111030.0,1.0415863]
[1756991853586,0.00024896,111040.0,111030.0,1.1941863]
[1756991853818,0.00024896,111040.0,111030.0,1.0415863]
[1756991854066,0.37357037,111040.0,111030.0,1.1925863]
[1756991854274,0.37357037,111040.0,111030.0,0.7925863]
[1756991854702,0.37357037,111040.0,111030.0,0.6385863]
[1756991854901,0.37357037,111040.0,111030.0,0.7911863]
[1756991855209,0.37357037,111040.0,111030.0,0.7885863]
[1756991855434,0.37357037,111040.0,111030.0,0.7915863]
[1756991855627,0.37357037,111040.0,111030.0,0.7885863]
[1756991855778,0.37357037,111040.0,111030.0,0.7901863]
[1756991855991,0.37357037,111040.0,111030.0,0.7931863]
[1756991856404,0.37357037,111040.0,111030.0,0.4531863]
[1756991859625,0.37357037,111040.0,111030.0,0.4515863]
[1756991860022,0.37357037,111040.0,111030.0,0.4531863]
[1756991860239,0.37357037,111040.0,111030.0,0.27804748]
[1756991860454,0.37357037,111040.0,111030.0,0.43064748]
[1756991860780,0.37357037,111040.0,111030.0,0.4485863]
[1756991861235,0.37357037,111040.0,111030.0,0.4505863]
[1756991861496,0.55368564,111040.0,111030.0,0.33773149]
[1756991862250,0.37357037,111040.0,111030.0,0.33573149]
[1756991863070,0.37357037,111040.0,111030.0,0.33673149]
[1756991863600,0.37357037,111040.0,111030.0,0.43024748]
[1756991863800,0.36847037,111040.0,111030.0,0.43024748]
[1756991864239,0.37172037,111040.0,111030.0,0.42724748]
[1756991864441,0.37387037,111040.0,111030.0,0.4501863]
[1756991865044,0.37387037,111040.0,111030.0,0.4485863]
[1756991866332,0.00564896,111040.0,111030.0,0.4485863]
[1756991866540,0.37387037,111040.0,111030.0,0.4485863]
[1756991866763,0.37387037,111040.0,111030.0,0.4501863]
[1756991867629,0.37387037,111040.0,111030.0,0.4485863]
[1756991871381,0.00024896,111040.0,111030.0,0.4501863]
[1756991871611,0.36847037,111040.0,111030.0,0.4501863]
[1756991871934,0.37387037,111040.0,111030.0,0.4501863]
[1756991872326,0.37387037,111040.0,111030.0,0.4485863]
[1756991874279,0.37387037,111040.0,111030.0,0.4501863]
[1756991874479,0.00564896,111040.0,111030.0,0.4501863]
[1756991874716,0.37387037,111040.0,111030.0,0.4501863]
[1756991874917,0.00024896,111040.0,111030.0,0.4501863]
[1756991875092,0.00024896,111040.0,111030.0,0.81940771]
[1756991875506,0.00024896,111040.0,111030.0,0.4511863]
[1756991875695,0.00024896,111040.0,111030.0,0.81940771]
[1756991876674,0.00024896,111040.0,111030.0,0.4511863]
[1756991878879,0.00024896,111040.0,111030.0,0.4491863]
[1756991879080,0.00024896,111040.0,111030.0,0.4481863]
[1756991879285,0.00024896,111040.0,111030.0,0.4511863]
[1756991879483,0.00024896,111040.0,111030.0,0.4541863]
[1756991879898,0.00024896,111040.0,111030.0,0.4531863]
[1756991880307,0.00024896,111040.0,111030.0,0.4541863]
[1756991881339,0.00024896,111040.0,111030.0,0.3015863]
[1756991881533,0.00024896,111040.0,111030.0,0.4541463]
[1756991882386,0.00024896,111040.0,111030.0,0.3005863]
[1756991882805,0.00024896,111040.0,111030.0,0.4531463]
[1756991883251,0.00024896,111040.0,111030.0,0.3005863]
[1756991883452,0.37387037,111040.0,111030.0,0.4531463]
[1756991885029,0.00564896,111040.0,111030.0,0.4531463]
[1756991890945,0.00564896,111040.0,111030.0,0.2989863]
[1756991891146,0.37387037,111040.0,111030.0,0.4515463]
[1756991891548,0.74247354,111040.0,111030.0,0.4515463]
[1756991892234,0.74247354,111040.0,111030.0,0.4485463]
[1756991892643,0.74247354,111040.0,111030.0,0.4455463]
[1756991893029,0.74347354,111040.0,111030.0,0.4455463]
[1756991894100,0.74347354,111040.0,111030.0,0.35363031]
[1756991895114,0.74347354,111040.0,111030.0,0.18013149]
[1756991895408,0.89603354,111040.0,111030.0,0.20107031]
[1756991895641,0.74347354,111040.0,111030.0,0.20107031]
[1756991895850,0.89599354,111040.0,111030.0,0.20107031]
[1756991897988,0.89599354,111040.0,111030.0,0.18013149]
[1756991898370,0.74347354,111040.0,111030.0,0.18013149]
[1756991898562,0.89599354,111040.0,111030.0,0.18013149]
[1756991899953,0.90509239,111040.0,111030.0,0.18013149]
[1756991900827,0.89599354,111040.0,111030.0,0.18013149]
[1756991901655,0.00664896,111040.0,111030.0,0.18013149]
[1756991901861,0.92306352,111040.0,111030.0,0.18238313]
[1756991902230,0.18623894,111040.0,111030.0,0.18238313]
[1756991902435,0.55465123,111040.0,111030.0,0.18238313]
[1756991902873,0.55465123,111040.0,111030.0,0.20492195]
[1756991902874,0.03371894,111040.0,111030.0,0.20492195]
[1756991903023,0.15376896,111040.0,111030.0,0.20267031]
[1756991903393,0.00124896,111040.0,111030.0,0.66399859]
[1756991904159,0.00124896,111040.0,111030.0,0.69106467]
[1756991904694,0.00024896,111040.0,111030.0,0.32365238]
[1756991905107,0.00024896,111040.0,111030.0,0.69306467]
[1756991905449,0.00024896,111040.0,111030.0,0.69206467]
[1756991906277,0.00024896,111040.0,111030.0,0.32365238]
[1756991908952,0.3706956,111050.0,111040.0,0.20105409]
[1756991909159,0.3727256,111050.0,111040.0,0.44563082]
[1756991910643,0.3737256,111050.0,111040.0,0.44563082]
[1756991912161,0.00601,111050.0,111040.0,0.44563082]
[1756991912357,0.37442229,111050.0,111040.0,0.44563082]
[1756991913182,0.37442229,111050.0,111040.0,0.44723082]
[1756991913382,0.37442229,111050.0,111040.0,0.44563082]
[1756991915592,0.00601,111050.0,111040.0,0.44723082]
[1756991915888,0.37442229,111050.0,111040.0,0.44723082]
[1756991916737,0.00601,111050.0,111040.0,0.44723082]
[1756991916942,0.37442229,111050.0,111040.0,0.44723082]
[1756991918095,0.00601,111050.0,111040.0,0.44723082]
[1756991918294,0.37442229,111050.0,111040.0,0.44723082]
[1756991918728,0.001,111050.0,111040.0,0.44723082]
[1756991918941,0.36941229,111050.0,111040.0,0.44723082]
[1756991919856,0.37458229,111050.0,111040.0,0.44723082]
[1756991921812,0.37251229,111050.0,111040.0,0.44723082]
[1756991922219,0.36941229,111050.0,111040.0,0.44723082]
[1756991923223,0.37458229,111050.0,111040.0,0.44723082]
[1756991923660,0.37458229,111050.0,111040.0,0.44563082]
[1756991925635,0.37458229,111050.0,111040.0,0.29311082]
[1756991926059,0.37458229,111050.0,111040.0,0.44559082]
[1756991928678,0.001,111050.0,111040.0,0.44719082]
[1756991928892,0.001,111050.0,111040.0,0.81660311]
[1756991929124,0.001,111050.0,111040.0,1.55207901]
[1756991929579,0.001,111050.0,111040.0,1.18366672]
[1756991929807,1e-08,111050.0,111040.0,1.55207901]
[1756991930071,0.36841229,111080.0,111070.0,0.20100544]
[1756991930300,0.0033,111090.0,111080.0,0.18005041]
[1756991930523,0.37378229,111090.0,111080.0,0.18230104]
[1756991930742,0.37378229,111090.0,111080.0,0.33498104]
[1756991931017,0.37378229,111090.0,111080.0,0.33273041]
[1756991931682,0.37390909,111090.0,111080.0,0.33273041]
[1756991932615,0.37490909,111090.0,111080.0,0.33273041]
[1756991932963,0.74332138,111090.0,111080.0,0.18005041]
[1756991933169,0.74332138,111090.0,111080.0,0.33269041]
[1756991933604,0.92335558,111090.0,111080.0,0.33269041]
[1756991934013,0.74332138,111090.0,111080.0,0.33269041]
[1756991935220,0.0064968,111090.0,111080.0,0.33269041]
[1756991935424,0.74332138,111090.0,111080.0,0.33269041]
[1756991940678,0.74332138,111090.0,111080.0,0.33257041]
[1756991941534,0.92335558,111090.0,111080.0,0.18005041]
[1756991941741,0.74332138,111090.0,111080.0,0.33257041]
[1756991953503,0.922752,111090.0,111080.0,0.18005041]
[1756991953756,0.922752,111090.0,111080.0,0.33245041]
[1756991954390,0.7427178,111090.0,111080.0,0.33245041]
[1756991954993,0.922752,111090.0,111080.0,0.33245041]
[1756991955194,0.7427178,111090.0,111080.0,0.33245041]
[1756991955849,0.922752,111090.0,111080.0,0.33245041]
[1756991963876,0.7427178,111090.0,111080.0,0.33245041]
[1756991965408,0.7427178,111090.0,111080.0,0.33405041]
[1756991965621,0.0064968,111090.0,111080.0,0.33405041]
[1756991965840,0.7427178,111090.0,111080.0,0.33405041]
[1756991966951,0.7427178,111090.0,111080.0,0.33245041]
[1756991969242,0.0064968,111090.0,111080.0,0.33405041]
[1756991969470,0.922752,111090.0,111080.0,0.33245041]
[1756991970399,0.18006662,111070.0,111040.0,0.18111216]
[1756991970642,0.55030955,111050.0,111040.0,0.24531599]
[1756991970845,0.55325955,111050.0,111040.0,0.1534]
[1756991971281,0.33754905,111050.0,111040.0,0.1534]
[1756991971520,0.70565955,111050.0,111040.0,0.001]
[1756991971738,0.18011527,111040.0,111030.0,0.33253149]
[1756991971985,0.55117577,111040.0,111030.0,0.33253149]
[1756991972196,0.55327577,111040.0,111030.0,0.33253149]
[1756991972622,0.5623094,111040.0,111030.0,0.33253149]
[1756991974607,0.5623094,111040.0,111030.0,0.1524]
[1756991974802,0.9304199,111040.0,111030.0,0.1524]
[1756991975072,0.9304199,111040.0,111020.0,0.1524]
[1756991975073,0.18013149,111030.0,111020.0,0.1524]
[1756991975261,0.91845249,111030.0,111020.0,0.1524]
[1756991975506,0.92140249,111030.0,111020.0,0.1524]
[1756991976662,0.92140249,111030.0,111010.0,0.34151215]
[1756991976869,0.00505,111030.0,111020.0,0.18239956]
[1756991977081,0.741271,111030.0,111020.0,0.18399956]
[1756991977298,0.92140249,111030.0,111020.0,0.18174772]
[1756991977508,0.92140249,111030.0,111020.0,0.18014772]
[1756991977720,0.92140249,111030.0,111020.0,0.001]
[1756991977909,0.92140249,111030.0,111020.0,0.18114772]
[1756991978110,1.07380249,111030.0,111020.0,0.18114772]
[1756991978321,1.07380249,111030.0,111020.0,0.001]
[1756991978526,1.07380249,111030.0,111020.0,0.18114772]
[1756991978743,1.07380249,111030.0,111020.0,0.001]
[1756991980299,1.07384249,111030.0,111020.0,0.001]
[1756991980517,1.07384249,111030.0,111010.0,0.33250396]
[1756991980732,0.3681105,111020.0,111010.0,0.33250396]
[1756991980966,0.3710405,111020.0,111010.0,0.33250396]
[1756991981173,0.3732005,111020.0,111010.0,0.33250396]
[1756991982207,0.55334822,111020.0,111010.0,0.33250396]
[1756991984901,0.72256549,111020.0,111010.0,0.33250396]
[1756991985348,0.72256549,111020.0,111010.0,0.18010396]
[1756991993502,0.72257212,111020.0,111010.0,0.18010396]
[1756991994159,0.72257212,111020.0,111000.0,0.01]
[1756991994160,0.18016394,111010.0,111000.0,0.01]
[1756991994377,1.10787464,111010.0,111000.0,0.01]
[1756991994583,1.11003464,111010.0,111000.0,0.01]
[1756991995007,1.13711471,111010.0,111000.0,0.01]
[1756991995219,1.16129302,111010.0,111000.0,0.01]
[1756991995403,1.16141967,111010.0,111000.0,0.01]
[1756991996078,1.16141967,111010.0,111000.0,0.011]
[1756991996484,1.1761185,111010.0,111000.0,0.011]
[1756991996693,1.1761185,111010.0,111000.0,0.01]
[1756991996910,1.1761185,111010.0,111000.0,0.011]
[1756991997144,1.1791185,111010.0,111000.0,0.011]
[1756991997359,1.1791185,111010.0,111000.0,0.01]
[1756991997567,1.21142446,111010.0,111000.0,0.01]
[1756991997749,1.21242446,111010.0,111000.0,0.01]
[1756991998197,1.76066627,111010.0,111000.0,0.01]
[1756991999273,1.72836031,111010.0,111000.0,0.01]
[1756991999774,1.72840435,111010.0,111000.0,0.01]
[1756992000111,1.67981621,111010.0,111000.0,0.01]
[1756992000327,1.67983572,111010.0,111000.0,0.01]
[1756992001325,1.74468504,111010.0,111000.0,0.01]
[1756992003144,1.74470263,111010.0,111000.0,0.01]
[1756992003715,1.72536683,111010.0,111000.0,0.01]
[1756992003977,1.74477409,111010.0,111000.0,0.01]
[1756992004237,0.18019641,110990.0,110980.0,0.18922233]
[1756992004455,0.77604453,110990.0,110980.0,0.19082233]
[1756992005296,0.77897453,110990.0,110980.0,0.19082233]
[1756992005517,0.18021265,110980.0,110970.0,0.21013338]
[1756992005746,0.72530122,110980.0,110970.0,0.0016]
[1756992005962,1.14926574,110980.0,110960.0,0.39900956]
[1756992006173,0.3681105,110970.0,110960.0,0.49092555]
[1756992006387,0.38751857,110970.0,110960.0,0.27208555]
[1756992006603,0.38751857,110970.0,110960.0,0.29462437]
[1756992006801,0.75562907,110970.0,110960.0,0.29462437]
[1756992007270,0.9667803,110970.0,110960.0,0.18176956]
[1756992007497,0.99735948,110970.0,110960.0,0.18223896]
[1756992007704,1.14983948,110970.0,110960.0,0.18231453]
[1756992009464,1.14085159,110970.0,110960.0,0.18231453]
[1756992009702,1.14085159,110970.0,110960.0,0.18071453]
[1756992010357,1.15635715,110970.0,110960.0,0.18071453]
[1756992010754,1.15004047,110970.0,110960.0,0.18071453]
[1756992011082,1.11769046,110970.0,110960.0,0.18231453]
[1756992011309,0.93237157,110970.0,110960.0,0.18231453]
[1756992011527,0.95552638,110970.0,110960.0,0.18231453]
[1756992013393,0.95856638,110970.0,110960.0,0.18231453]